Cogmind - Beta 16 @@@ ROGUE MODE // 2025.11.11 @ 07:33:37 Player: shapeshifter Result: Self-destructed Performance ------------- Evolutions (5) 2500 Regions Visited (7) 1400 Robots Destroyed (1) 5 Value Destroyed (5) 5 Prototype IDs (0) 0 Alien Tech Used (0) 0 Bonus (2487) 2487 TOTAL SCORE: 6397 Bonus ------- Pacifist 1987 Entered DSFs 500 Cogmind --------- Core Integrity 639/1000 Matter 268/300 Energy 88/100 System Corruption 0% Temperature Cool (0) Movement Core (50) Location -5/Factory Parts ------- > --- POWER (2) -------- (None) > --- PROPULSION (6) --- (None) > --- UTILITY (7) ------ Improved Signal Interpreter Improved Terrain Scan Processor > --- WEAPON (2) ------- (None) > --- INVENTORY (5) ---- Ion Engine Ion Engine Improved Coolant Injector Improved Terrain Scan Processor Peak State ------------ > --- POWER ------------ (None) > --- PROPULSION ------- Nuclear Pulse Array > --- UTILITY ---------- Improved Signal Interpreter Improved Terrain Scan Processor Hacking Suite > --- WEAPON ----------- Heavy Mace > --- INVENTORY -------- Ion Engine Ion Engine Improved Coolant Injector Improved Terrain Scan Processor Heavy Mace [Rating: 25] Favorites ----------- Power None Propulsion Nuclear Pulse Array Flight Unit Nuclear Pulse Array Utility Improved Terrain Scan Processor Device Improved Terrain Scanner Processor Improved Terrain Scan Processor Hackware Hacking Suite Weapon Heavy Mace Impact Weapon Heavy Mace Slashing Weapon Scythe Build | -11 -10 -9 -8 -7 -6 -6 -5 ------- Run | Yrd Mat Mat Mat Fac Fac DSF Fac Slots Evolved 10 | . . 2 2 2 2 . 2 Power 1 | . . . . . . . 1 Propulsion 4 | . . 2 1 1 . . . Utility 5 | . . . 1 1 2 . 1 Weapon . | . . . . . . . . Parts Attached 9 | . . 2 2 1 . . 4 Power . | . . . . . . . . Engine . | . . . . . . . . Core . | . . . . . . . . Reactor . | . . . . . . . . Propulsion 1 | . . . . . . . 1 Treads . | . . . . . . . . Leg . | . . . . . . . . Wheel . | . . . . . . . . Hover . | . . . . . . . . Flight 1 | . . . . . . . 1 Utility 5 | . . 1 1 1 . . 2 Device 1 | . . . 1 . . . . Storage . | . . . . . . . . Processor 2 | . . 1 . . . . 1 Hackware 2 | . . . . 1 . . 1 Protection . | . . . . . . . . Artifact . | . . . . . . . . Weapon 3 | . . 1 1 . . . 1 Energy Gun . | . . . . . . . . Energy Cannon . | . . . . . . . . Ballistic Gun . | . . . . . . . . Ballistic Cannon . | . . . . . . . . Launcher . | . . . . . . . . Special Weapon . | . . . . . . . . Impact Weapon 2 | . . 1 . . . . 1 Slashing Weapon 1 | . . . 1 . . . . Piercing Weapon . | . . . . . . . . Special Melee Weapon . | . . . . . . . . Unidentified Prototypes . | . . . . . . . . Parts Lost 4 | . . . . . . 2 2 Power . | . . . . . . . . Propulsion 1 | . . . . . . . 1 Utility 2 | . . . . . . 1 1 Weapon 1 | . . . . . . 1 . Highest Loss Streak 2 | . . . . . . 2 1 To Critical Strikes . | . . . . . . . . Average Backups 4 | 1 2 2 4 5 5 5 4 Power 1 | 1 2 2 2 2 2 2 2 Propulsion . | . . . . . . . . Utility 1 | . . . 1 1 1 1 1 Weapon 1 | . . . 1 2 2 2 1 Tool/Special . | . . . . . . . . Unused Backups 5 | . . . 1 . . . 4 Power 2 | . . . . . . . 2 Propulsion . | . . . . . . . . Utility 2 | . . . . . . . 2 Weapon . | . . . . . . . . Tool/Special 1 | . . . 1 . . . . Average Slot Usage (%) 17 | . . 6 19 24 26 19 24 Device 2 | . . . 6 7 6 3 . Processor 7 | . . 3 9 7 6 6 10 Hackware 2 | . . . . 1 6 6 6 Impact Weapon 2 | . . 3 2 . . . 4 Slashing Weapon 1 | . . . 1 7 6 2 . Peak Build Rating 25 | . . 6 10 13 13 13 25 Average Rating 9 | . . 1 7 10 13 9 15 On Entrance 6 | . . . 6 10 13 13 7 Avg Prop Armor Cover (%) . | . . . . . . . . Naked Turns 119 | . 44 75 . . . . . Heaviest Build 3 | . . 3 3 3 3 3 3 Greatest Support 13 | 3 3 3 3 3 3 3 13 Greatest Overweight (x) . | . . . . . . . . Average Overweight (x) . | . . . . . . . . Largest Inventory Capacity 5 | 5 5 5 5 5 5 5 5 Average Capacity 5 | 5 5 5 5 5 5 5 5 Most Carried 5 | 2 2 5 5 5 5 5 5 Average Carried 4 | 1 2 2 4 5 5 5 4 Final Capacity 5 | 5 5 5 5 5 5 5 5 Final Carried 5 | 2 2 4 5 5 5 5 4 Class Distribution -------------------- 91% | Mutant 8% | Hacker-Mutant Dominant Class ---------------- Mutant | -10/Materials Mutant | -9/Materials Mutant | -8/Materials Mutant | -7/Factory Mutant | -6/Factory Mutant | -6/DSF Mutant | -5/Factory Resources | -11 -10 -9 -8 -7 -6 -6 -5 ----------- Run | Yrd Mat Mat Mat Fac Fac DSF Fac Matter Collected 258 | 163 . 37 . 40 . . 18 Remotely . | . . . . . . . . Salvage Created 18 | . . . . . . . 18 Parts 2 | . . . . . . . 2 Haulers Intercepted . | . . . . . . . . Recyclers Shooed . | . . . . . . . . Parts Field Recycled . | . . . . . . . . Retrieved Matter . | . . . . . . . . Parts Self-Destructed . | . . . . . . . . Prevented . | . . . . . . . . Parts Restored . | . . . . . . . . Kills | -11 -10 -9 -8 -7 -6 -6 -5 ------- Run | Yrd Mat Mat Mat Fac Fac DSF Fac Combat Hostiles Destroyed . | . . . . . . . . Classes Destroyed 1 | . . . . . . . 1 Builder 1 | . . . . . . . 1 Best Kill Streak 1 | . . . . . . . 1 Combat Bots Only . | . . . . . . . . Max Kills in Single Turn 1 | . . . . . . . 1 Gunslinging . | . . . . . . . . Exploded . | . . . . . . . . Melee . | . . . . . . . . Uniques/NPCs Destroyed . | . . . . . . . . Combat | -11 -10 -9 -8 -7 -6 -6 -5 -------- Run | Yrd Mat Mat Mat Fac Fac DSF Fac Hostile Shots Fired 105 | . . 34 2 14 . 7 48 Missed 29 | . . 8 1 5 . . 15 Hits 76 | . . 26 1 9 . 7 33 Melee 9 | . . . . . . . 9 Projectile 67 | . . 26 1 9 . 7 24 Critical Strikes 8 | . . 1 . . . . 7 Damage Taken 1455 | . . 351 15 160 . 329 600 Core 1144 | . . 351 15 145 . 272 361 Absorbed by Shields 39 | . . . . . . 39 . Core Remaining (%) 76 | 100 100 12 97 79 . 68 . Volleys Fired . | . . . . . . . . Largest . | . . . . . . . . Hottest . | . . . . . . . . Shots Fired . | . . . . . . . . Gun . | . . . . . . . . Cannon . | . . . . . . . . Launcher . | . . . . . . . . Special . | . . . . . . . . Kinetic . | . . . . . . . . Thermal . | . . . . . . . . Explosive . | . . . . . . . . Electromagnetic . | . . . . . . . . Robot Hit Streak . | . . . . . . . . Robot Miss Streak . | . . . . . . . . Penetration Max . | . . . . . . . . Secondary Targets . | . . . . . . . . Shots Hit Robots 3 | . . . . . . . 3 Core Hits . | . . . . . . . . Critical Kills . | . . . . . . . . Critical Parts Destroyed 1 | . . . . . . . 1 Critical Strikes 1 | . . . . . . . 1 Smash 1 | . . . . . . . 1 Melee Attacks 14 | . . 2 2 1 . . 9 Impact 11 | . . 2 . . . . 9 Slashing 3 | . . . 2 1 . . . Piercing . | . . . . . . . . Sneak Attacks 1 | . . . . . . . 1 Combat Hostiles . | . . . . . . . . Follow-up Attacks . | . . . . . . . . Damage Inflicted 161 | . . 8 . . . . 153 Guns . | . . . . . . . . Cannons . | . . . . . . . . Explosions . | . . . . . . . . Melee 153 | . . . . . . . 153 Ramming 8 | . . 8 . . . . . Kinetic . | . . . . . . . . Thermal . | . . . . . . . . Explosive . | . . . . . . . . Electromagnetic . | . . . . . . . . Impact 153 | . . . . . . . 153 Slashing . | . . . . . . . . Piercing . | . . . . . . . . Highest Corruption 1 | . . . . 1 . . . Average Corruption 1 | . . . . 1 . . . Corruption Purged . | . . . . . . . . Corruption Blocked . | . . . . . . . . Overload Shots . | . . . . . . . . Overflow Damage 52 | . . . . . . . 52 Projectiles . | . . . . . . . . Explosions . | . . . . . . . . Melee 52 | . . . . . . . 52 Knockbacks 2 | . . . . . . . 2 Impact 2 | . . . . . . . 2 Kinetic . | . . . . . . . . Secondary . | . . . . . . . . Self-Inflicted Damage 4 | . . 4 . . . . . Shots . | . . . . . . . . Rammed 2 | . . 2 . . . . . Targets Rammed 2 | . . 2 . . . . . Kicked . | . . . . . . . . Crushed . | . . . . . . . . Highest Temperature 14 | . . 14 . . . . . Average Temperature 14 | . . 14 . . . . . Received Heat Transfer 207 | . . 162 9 9 . . 27 Siege Activations . | . . . . . . . . Martial Activations . | . . . . . . . . Shielding Activations . | . . . . . . . . Robots Disrupted . | . . . . . . . . Combat Hostiles . | . . . . . . . . Robots Corrupted . | . . . . . . . . Combat Hostiles . | . . . . . . . . Parts Fried 3 | . . . . . . . 3 Impact Corruptions 1 | . . . . . . . 1 Robots Melted . | . . . . . . . . Combat Hostiles . | . . . . . . . . Parts Melted . | . . . . . . . . Heat Transferred . | . . . . . . . . Parts Sabotaged . | . . . . . . . . Parts Stolen . | . . . . . . . . Parts Stripped . | . . . . . . . . Power Chain Reactions . | . . . . . . . . Alert | -11 -10 -9 -8 -7 -6 -6 -5 ------- Run | Yrd Mat Mat Mat Fac Fac DSF Fac Maximum Alert Level . | . . . . . . . . Low Security (%) 100 | 100 100 100 100 100 100 100 100 Level 1 . | . . . . . . . . Level 2 . | . . . . . . . . Level 3 . | . . . . . . . . Level 4 . | . . . . . . . . Level 5 . | . . . . . . . . High Security . | . . . . . . . . Max Security . | . . . . . . . . Peak Influence 112 | . . 112 42 25 23 16 30 Initial 42 | . . . 42 1 19 16 . Average 13 | . . 31 24 4 20 6 8 Influence Increases 285 | . . 122 2 60 4 . 97 Destroy 0b10 Robot/NC 5 | . . . . . . . 5 Successful Hack 18 | . . . . 14 4 . . Destroy Structure 7 | . . 2 2 1 . . 2 Partial Spotted 15 | . . . . . . . 15 Lose Combat Pursuer 240 | . . 120 . 45 . . 75 Influence Decreases 275 | . . 20 100 24 21 23 87 Entered New Map 91 | . . . 60 3 21 7 . Time Decay 148 | . . 20 40 21 . . 67 Lost Part 36 | . . . . . . 16 20 Squads Dispatched 5 | . 1 1 . 1 . . 2 Investigation 1 | . . 1 . . . . . Extermination 1 | . . . . . . . 1 Reinforcement 3 | . 1 . . 1 . . 1 Assault . | . . . . . . . . Garrison . | . . . . . . . . Intercept . | . . . . . . . . Searches Triggered . | . . . . . . . . Construction Impeded . | . . . . . . . . Haulers Reinforced . | . . . . . . . . Active Scanning Responses . | . . . . . . . . Cargo Convoy Interrupts . | . . . . . . . . Stealth | -11 -10 -9 -8 -7 -6 -6 -5 --------- Run | Yrd Mat Mat Mat Fac Fac DSF Fac Distress Signals 2 | . . . . 1 . . 1 Communications Jammed . | . . . . . . . . Distress Signals . | . . . . . . . . Times Spotted 31 | . 4 10 1 5 . 1 10 Peak Tracking Total 12 | . 4 12 2 5 . 1 5 Tactical Retreats 8 | . . 2 . 2 . . 4 Traps | -11 -10 -9 -8 -7 -6 -6 -5 ------- Run | Yrd Mat Mat Mat Fac Fac DSF Fac Traps Triggered 4 | . . 1 . 1 . 1 1 Indirectly . | . . . . . . . . Trap Hack Attempts . | . . . . . . . . Triggered . | . . . . . . . . Disarmed . | . . . . . . . . Reprogrammed . | . . . . . . . . Reused . | . . . . . . . . Traps Extracted . | . . . . . . . . Installed . | . . . . . . . . Triggered . | . . . . . . . . Machines | -11 -10 -9 -8 -7 -6 -6 -5 ---------- Run | Yrd Mat Mat Mat Fac Fac DSF Fac Machines Disabled . | . . . . . . . . Max in Single Turn . | . . . . . . . . Machines Repaired . | . . . . . . . . Machines Dismantled . | . . . . . . . . Machines Sabotaged . | . . . . . . . . Overloaded Fab Kills . | . . . . . . . . Hacking | -11 -10 -9 -8 -7 -6 -6 -5 --------- Run | Yrd Mat Mat Mat Fac Fac DSF Fac Machines Accessed 7 | . 1 . . 2 1 . 3 Terminals 5 | . 1 . . 1 1 . 2 Fabricators 1 | . . . . . . . 1 Repair Stations . | . . . . . . . . Recycling Units 1 | . . . . 1 . . . Scanalyzers . | . . . . . . . . Garrison Access . | . . . . . . . . Total Hacks 16 | . 4 . . 3 2 . 7 Successful 6 | . 2 . . 1 1 . 2 Failed 10 | . 2 . . 2 1 . 5 Catastrophic . | . . . . . . . . Database Lockouts . | . . . . . . . . Manual . | . . . . . . . . Terminals 12 | . 4 . . 1 2 . 5 Fabricators 2 | . . . . . . . 2 Repair Stations . | . . . . . . . . Recycling Units 2 | . . . . 2 . . . Scanalyzers . | . . . . . . . . Garrison Access . | . . . . . . . . Terminal Hacks 5 | . 2 . . 1 1 . 1 Open DSF 1 | . . . . . 1 . . Branch Access Points 1 | . . . . 1 . . . Alert Level 1 | . 1 . . . . . . Hauler Manifests 1 | . 1 . . . . . . Zone Layout 1 | . . . . . . . 1 Fabricator Hacks 1 | . . . . . . . 1 Build 1 | . . . . . . . 1 Repair Station Hacks . | . . . . . . . . Recycling Unit Hacks . | . . . . . . . . Scanalyzer . | . . . . . . . . Garrison Access Hacks . | . . . . . . . . Unauthorized Hacks . | . . . . . . . . Terminals . | . . . . . . . . Fabricators . | . . . . . . . . Repair Stations . | . . . . . . . . Recycling Units . | . . . . . . . . Scanalyzers . | . . . . . . . . Garrison Access . | . . . . . . . . Data Cores Recovered . | . . . . . . . . Used . | . . . . . . . . Hacking Detections 6 | . 1 . . 2 . . 3 Full Trace Events . | . . . . . . . . Feedback Events . | . . . . . . . . Feedback Blocked . | . . . . . . . . Robot Schematics Acquired . | . . . . . . . . Robots Built . | . . . . . . . . Authchips . | . . . . . . . . Time . | . . . . . . . . Total Robot Build Rating . | . . . . . . . . Part Schematics Acquired . | . . . . . . . . Parts Built 2 | . . . . . . . 2 Authchips . | . . . . . . . . Time 69 | . . . . . . . 69 Total Part Build Rating 18 | . . . . . . . 18 Part Studies Acquired . | . . . . . . . . Parts Repaired . | . . . . . . . . Time . | . . . . . . . . Parts Recycled . | . . . . . . . . Recycled Matter . | . . . . . . . . Retrieved Matter . | . . . . . . . . Retrieved Components . | . . . . . . . . Parts Scanalyzed . | . . . . . . . . Part Schematics Acquired . | . . . . . . . . Parts Damaged . | . . . . . . . . Bothacking | -11 -10 -9 -8 -7 -6 -6 -5 ------------ Run | Yrd Mat Mat Mat Fac Fac DSF Fac Used RIF Installer . | . . . . . . . . Robots Hacked . | . . . . . . . . Non-combat . | . . . . . . . . Combat . | . . . . . . . . Robot Hacks Applied . | . . . . . . . . Relay Couplers Released . | . . . . . . . . Fabnet Peak Effective % . | . . . . . . . . Robots Rewired . | . . . . . . . . Allies Hacked . | . . . . . . . . Hacks Repelled . | . . . . . . . . Allies | -11 -10 -9 -8 -7 -6 -6 -5 -------- Run | Yrd Mat Mat Mat Fac Fac DSF Fac Total Allies . | . . . . . . . . Largest Group . | . . . . . . . . Highest-Rated Group . | . . . . . . . . Highest-Rated Ally . | . . . . . . . . Total Orders . | . . . . . . . . Ally Attacks . | . . . . . . . . Total Damage . | . . . . . . . . Kills . | . . . . . . . . Allies Corrupted . | . . . . . . . . Allies Melted . | . . . . . . . . Intel | -11 -10 -9 -8 -7 -6 -6 -5 ------- Run | Yrd Mat Mat Mat Fac Fac DSF Fac Active Infowar (turns) 173 | . . . 69 80 3 21 . Terrain 173 | . . . 69 80 3 21 . Robot Analysis Total . | . . . . . . . . Derelict Logs Recovered . | . . . . . . . . Drone Launches . | . . . . . . . . Drone Recoveries . | . . . . . . . . Exploration | -11 -10 -9 -8 -7 -6 -6 -5 ------------- Run | Yrd Mat Mat Mat Fac Fac DSF Fac Turns Passed 585 | 15 44 105 87 80 3 39 212 Spaces Moved 1031 | 26 88 183 154 152 5 64 359 Core 1017 | 26 88 183 154 152 5 64 345 Treads . | . . . . . . . . Legs . | . . . . . . . . Wheels . | . . . . . . . . Hover . | . . . . . . . . Flight 14 | . . . . . . . 14 Fastest Speed 40 | 50 50 50 50 50 50 50 40 Average Speed 49 | 50 50 50 50 50 50 50 49 Slowest Speed 50 | 50 50 50 50 50 50 50 50 Overloaded Moves . | . . . . . . . . Propulsion Burnouts . | . . . . . . . . Robots Hopped . | . . . . . . . . Potential Cave-ins . | . . . . . . . . Cave-ins Triggered . | . . . . . . . . Exploration Rate (%) 26 | 3 23 26 19 7 . 85 19 Regions Visited 7 Branch Regions . Pre-discovered Areas . | . . . . . . . . Known Exits Taken 1 | . . . . . 1 . . Unknown Exits Taken 5 | 1 1 1 1 1 . . . Scrap Searched . | . . . . . . . . Spaces Dug 6 | . . 2 2 1 . . 1 Terrain Destroyed 6 | . . 2 2 1 . . 1 Melee 6 | . . 2 2 1 . . 1 Projectile . | . . . . . . . . AOE . | . . . . . . . . Terrain Rammed . | . . . . . . . . Walls Destroyed . | . . . . . . . . Machines Disabled . | . . . . . . . . Actions | -11 -10 -9 -8 -7 -6 -6 -5 --------- Run | Yrd Mat Mat Mat Fac Fac DSF Fac Total 1067 | 27 87 191 160 153 4 70 375 Wait . | . . . . . . . . Move 1024 | 25 87 182 153 151 4 63 359 Hop . | . . . . . . . . Pick Up 7 | 2 . 3 1 . . . 1 Fast Attach 8 | . . 1 2 1 . . 4 Attach 3 | . . 1 . . . . 2 Detach 1 | . . . 1 . . . . Swap . | . . . . . . . . Drop 1 | . . . 1 . . . . Fire . | . . . . . . . . Melee 14 | . . 2 2 1 . . 9 Ram 2 | . . 2 . . . . . Kick . | . . . . . . . . Crush . | . . . . . . . . Escape Stasis 6 | . . . . . . 6 . Rewire 1 | . . . . . . 1 . Trap . | . . . . . . . . Miscellaneous . | . . . . . . . . Route ------- -11/Scrapyard -10/Materials -9/Materials -8/Materials -7/Factory (discovered 5 exits: *Fac x2 / Sto / Low x2) -6/Factory -6/DSF -5/Factory (discovered 2 exits: *Upp x2) History --------- Turn | Location | Event 7 | -11/Scrapyard | Discovered new exit (range 16) 16 | -11/Scrapyard | Entered Materials 52 | -10/Materials | Discovered new exit (range 12) 60 | -10/Materials | Entered another Materials area 60 | -9/Materials | Evolved 2 slots: Propulsion x2 105 | -9/Materials | Core integrity fell below 50% 121 | -9/Materials | Core integrity fell below 20% 161 | -9/Materials | Discovered new exit (range 7) 165 | -9/Materials | Entered another Materials area 165 | -8/Materials | Evolved 2 slots: Propulsion x1, Utility x1 249 | -8/Materials | Discovered new exit (range 3) 252 | -8/Materials | Entered Factory 252 | -7/Factory | Evolved 2 slots: Propulsion x1, Utility x1 313 | -7/Factory | Build established: Mutant 324 | -7/Factory | Discovered new exit (range 11) 326 | -7/Factory | Discovered new exit (range 16) 327 | -7/Factory | Identified exit to Storage 327 | -7/Factory | Identified exit to Lower Caves 332 | -7/Factory | Entered another Factory area 332 | -6/Factory | Evolved 2 slots: Utility x2 334 | -6/Factory | Identified exit to DSF 335 | -6/Factory | Entered DSF 367 | -6/DSF | Additional patrols routed to DSF 368 | -6/DSF | Discovered new exit (range 14) 374 | -6/DSF | Entered Factory 374 | -5/Factory | Evolved 2 slots: Power x1, Utility x1 483 | -5/Factory | Discovered new exit (range 13) 490 | -5/Factory | Identified exit to Upper Caves 505 | -5/Factory | Fabricated Enh. Quantum Rifle? 526 | -5/Factory | Discovered exit to Upper Caves (range 9) 586 | -5/Factory | Self-destructed Last Messages --------------- 00539_ K-01 Serf cleans the Nuclear Reactor. 00548_ ALERT: Potential suspicious activity detected, Programmers report to Factory Zone 7C. 00559_ ALERT: Suspicious intruders detected, dispatching Cutter reinforcements to area. 00560_ Acquired Nuclear Pulse Array. 00565_ Triggered Segregator Trap. 00565_ Arcs of energy rise from the floor. 00570_ C-35 Carver knocked back. 00570_ U-05 Engineer lays Concrete. 00573_ Hvy. Mace severed. 00576_ Acquired Hvy. Mace. 00576_ Hvy. Mace severed. 00579_ Slug penetrates Wall. 00581_ C-35 Carver knocked back. 00583_ Nuclear Pulse Array destroyed. 00583_ Slug penetrates Wall. 00584_ Hvy. Mace severed. 00585_ Hacking Suite severed. 00586_ Penetrated by Slug. Map ----- +----------------------------------------------------+ | ?????????????????????????????????????????????????? | | ?????????????????????????????????????????????????? | | ?????????????????????????????????????????????????? | | ?????????????????????????????????????????????????? | | ?????????????????????????????????????????????????? | | ?????????????????????????????????????????????????? | | ?????????????????????????????????????????????????? | | ?????????????????????????????? ?????????????? | | ???????????????????????????? ????????????? | | ???????????????????????????? ?????????????? | | ???????????????????????????? ????????????? | | ????????????????????????????? ?????????????? | | ????????????????????????????? ?????????????? | | ?????????????????????????????# #?????????????? | | ?????????????????????????????# H ###???????????? | | ?????????????????????????????# T????????????? | | ?????????????????????????????+ "?????????????? | | ?????????????????????????????# ##########????? | | ?????????????????????????????# # #????? | | ?????????????????????????????# # ! """ =#????? | | ????????????????????????#+#??# # """ #????? | | ???????????????????????## ##?# # """ #????? | | ???????????????????????# ### # #????? | | ?????????????########### u + " " #????? | | ?????????? cc # "R" =#????? | | ?????????? @""""" # """ #????? | | ??????????????######### ""=F" # [ #????? | | ??????????????????????# ""="" ###+#######???? | | ??????????????????????# #???? | | ??????????????????????# #???? | | ??????????????????????+ #???? | | ??????????????????????# ######## ##???? | | ??????????????????????# k """ """ #??????# #????? | | ??????????????????????# """ """ #??????# #????? | | ??????????????????????# """ """ #??????# #????? | | ??????????????????????# h""" """ #??????# #????? | | ??????????????????????# #??????# #????? | | ??????????????????????# ########+###### | | ??????????????????????# ? ## # | | ??????????????????????###+??# ## """""" # | | ????????????????????????????# ## """""" # | | ????????????????????????????# # """""" # | | ????????????????????????????# # [ """""" # | | ????????????????????????????# # # | | ????????????????????????????# + """""" # | | ????????????????????????????# # """""" ? | | ???????????????????????????## # """""??? | | ???????????????????????????+ # """""??? | | ???????????????????????????# # ???? | | ??########???+########+##### # ??? | +----------------------------------------------------+ Best States ------------- Heat Dissipation 40 Energy Generation 5 Energy Capacity 100 Matter Stores 300 Matter Capacity 300 Sight Range 16 Terrain Scan Range 16 Terrain Scan Density 110 Evasion (%) 50 Offensive Hacking 10 Defensive Hacking 12 Item Schematics ----------------- None Robot Schematics ------------------ None Fabricated ------------ Enh. Quantum Rifle | x2 | -5/Factory | Preloaded Repaired ---------- Nothing Studied --------- None Alien Tech Used ----------------- None Achievements -------------- None Challenges ------------ None Game ------ Seed NeutrinoMomentumReplicator Manual? 0 Play Time 00:09:05 Cumulative 489.8 hours Start 2025.11.11 @ 07:26:33 End 2025.11.11 @ 07:33:37 Sessions 1 Manual Loads 0 Difficulty Rogue Special Mode None Game No. 656 Rogue 656 Adventurer 0 Explorer 0 Win Type - Total 15 Types 7/0/2/2/1/0/2/1/0/0 Lore% 90 Gallery% 85 Achievement% 65 Wizard Run 0 Options --------- Layout 0 ASCII 0 Keyboard 0 Movement Mouse Keybinds 0 Fullscreen 1 Font 24/Terminus Map View 76x50 Zoom Use 0% Tactical HUD 1 Map Filters NONE Filters NONE Steam 1 RUN: 7994dfd7-6bb4-489d-9174-a7d219f0622e